Workbook

Sheet Sheet1
A1: ANNEXURE A: OHSE AGENT PRICING SCHEDULE Corridor Replacement and Refurbishment of Signal Equipment between KwaMashu to Duffs Road, etc.
A2: A | B2: Project Timeframe (14Months) | C2: 1 | D2: =+C2+1 -> 2 | E2: =+D2+1 -> 3 | F2: 4 | G2: 5 | H2: 6 | I2: 7 | J2: 8 | K2: 9 | L2: 10 | M2: =+L2+1 -> 11 | N2: =+M2+1 -> 12 | O2: =+N2+1 -> 13 | P2: =+O2+1 -> 14 | Q2: Total
B3: Months | C3: 2024-06-01 | D3: 2024-07-01 | E3: 2024-08-01 | F3: 2024-09-01 | G3: 2024-10-01 | H3: 2024-11-01 | I3: 2024-12-01 | J3: 2025-01-01 | K3: 2025-02-01 | L3: 2025-03-01 | M3: 2025-04-01 | N3: 2025-05-01 | O3: 2025-06-01 | P3: 2025-07-01
A4: B | B4: Working days | C4: 24 | D4: 27 | E4: 27 | F4: 24 | G4: 27 | H4: 26 | I4: 15 | J4: 23 | K4: 23 | L4: 23 | M4: 23 | N4: 26 | O4: 24 | P4: 27 | Q4: =SUM(C4:P4) -> 339
A5: C | B5: 8Hours per day | C5: 8 | D5: 8 | E5: 8 | F5: 8 | G5: 8 | H5: 8 | I5: 8 | J5: 8 | K5: 8 | L5: 8 | M5: 8 | N5: 8 | O5: 8 | P5: 8 | Q5: =SUM(C5:P5) -> 112
A6: Total Hours | C6: =+C5*C4 -> 192 | D6: 216 | E6: 216 | F6: 192 | G6: 216 | H6: 208 | I6: 120 | J6: 184 | K6: 184 | L6: 184 | M6: 184 | N6: 208 | O6: 192 | P6: 216 | Q6: =+Q4*Q5 -> 37968
R7: Rate/Hour | S7: Total Cost | T7: VAT 15% | U7: Grand Total Cost
A8: 1 | B8: PrConstruction Health and Safety Officer (100%) | C8: =+C6 -> 192 | D8: 216 | E8: 216 | F8: 192 | G8: 216 | H8: 208 | I8: 120 | J8: 184 | K8: 184 | L8: 184 | M8: 184 | N8: =+N6 -> 208 | O8: =SUM(C8:N8) -> 2304 | P8: 0 | Q8: =P8*O8 -> 0 | R8: =+Q8*0.15 -> 0 | S8: =Q8+R8 -> 0 | T8: =+S8*0.15 -> 0 | U8: =S8+T8 -> 0
A9: 2 | B9: PrC H&S Agent (PrC H&S Agent (Two days per month. Attend Monthly Project Meetngs, Prepare Monthly Reports prior to attending, Conduct Monthly Audits and as an when Sec. 24 case Incident Investigations)* | C9: =C8*0.25 -> 48 | D9: =D8*0.25 -> 54 | E9: 54 | F9: 48 | G9: 54 | H9: 52 | I9: 30 | J9: 46 | K9: 46 | L9: 46 | M9: =M8*0.25 -> 46 | N9: 52 | O9: =SUM(C9:N9) -> 576 | P9: 0 | Q9: =P9*O9 -> 0 | R9: =+Q9*0.15 -> 0 | S9: =Q9+R9 -> 0 | T9: =+S9*0.15 -> 0 | U9: =S9+T9 -> 0
A10: 3 | B10: Estimated Overtime (CHSO) as and when required* | C10: 45 | D10: 45 | E10: 45 | F10: 45 | G10: 45 | H10: 45 | I10: 45 | J10: 45 | K10: 45 | L10: 45 | M10: 45 | N10: 45 | O10: =SUM(C10:N10) -> 540 | P10: 0 | Q10: =P10*O10 -> 0 | R10: 0 | S10: =Q10+R10 -> 0 | T10: 0 | U10: =S10+T10 -> 0
A11: 4 | B11: Km Rates (CHSO)* (daily from Site Camp to Work Site ONLY) | C11: 40 | D11: 40 | E11: 40 | F11: 40 | G11: 40 | H11: 40 | I11: 40 | J11: 40 | K11: 40 | L11: 40 | M11: 40 | N11: 40 | O11: =SUM(C11:N11) -> 480 | P11: 0 | Q11: =P11*O11 -> 0 | R11: 0 | S11: =Q11+R11 -> 0 | T11: 0 | U11: =S11+T11 -> 0
A12: 5 | B12: Permit Application DoEL | G12: once off | Q12: 100 | R12: =Q12*15% -> 15 | S12: =Q12+R12 -> 115.00 | T12: 17.25 | U12: 132.25
A13: 6 | B13: Close-Out Report | G13: once off | Q13: 100 | R13: =Q13*15% -> 15 | S13: =Q13+R13 -> 115.00 | T13: 17.25 | U13: 132.25
B14: TOTAL COST PER HOURS | U14: =SUM(U8:U13) -> 264.50
A15: PLEASE NOTE: The hourly rates and once off costs per discipline must be inclusive of all disbursements and other costs i.e. overhead cost, accommodation, traveling - and office expenses.
A17: 1* | B17: CHSO to be full time on site.
A18: 2* | B18: CHSA to be on site twice a month for Audits and Monthly Project Meeting attendance.
A19: 3* | B19: Overtime is not guaranteed. Value placed here are estimated.
A20: 4* | B20: Kilometres traveled to be as per AA rates from Site Camp to work site as per Project's daily movement.
